[Event "Estonian Chess Championship 2021"]
[Site "Tallinn, Paul Keres Chess House, Estonia"]
[Date "2021.12.19"]
[Round "9.3"]
[White "Soot, Margus"]
[Black "Pedmanson, Albert"]
[Result "0-1"]
[TimeControl "90 minutes for first 40 moves and 15 min. for the rest of the game with 30 sec."]
[WhiteFideId "4501160"]
[BlackFideId "4505778"]
[WhiteElo "2117"]
[BlackElo "1888"]

1. d4 {[%clk 01:30:46]} {[%emt 00:00:13]} Nf6 {[%clk 01:29:15]} {[%emt
00:01:45]} 2. Nc3 {[%clk 01:29:29]} {[%emt 00:01:48]} d5 {[%clk 01:27:51]}
{[%emt 00:01:55]} 3. Bg5 {[%clk 01:29:42]} {[%emt 00:00:16]} e6 {[%clk
01:23:30]} {[%emt 00:04:51]} 4. e4 {[%clk 01:26:45]} {[%emt 00:03:27]} Bb4
{[%clk 01:11:48]} {[%emt 00:12:12]} 5. e5 {[%clk 01:19:48]} {[%emt 00:07:27]}
h6 {[%clk 01:11:31]} {[%emt 00:00:47]} 6. exf6 {[%clk 01:20:14]} {[%emt
00:00:04]} hxg5 {[%clk 01:11:41]} {[%emt 00:00:19]} 7. fxg7 {[%clk 01:20:40]}
{[%emt 00:00:04]} Rg8 {[%clk 01:11:33]} {[%emt 00:00:38]} 8. Qh5 {[%clk
01:20:54]} {[%emt 00:00:16]} Qf6 {[%clk 01:10:00]} {[%emt 00:02:04]} 9. Nf3
{[%clk 01:21:12]} {[%emt 00:00:11]} Qxg7 {[%clk 01:09:27]} {[%emt 00:01:03]} 10.
a3 {[%clk 01:19:50]} {[%emt 00:01:53]} Ba5 {[%clk 01:07:23]} {[%emt 00:02:33]}
11. b4 {[%clk 01:15:07]} {[%emt 00:05:14]} Bb6 {[%clk 01:07:22]} {[%emt
00:00:31]} 12. Rd1 {[%clk 01:15:19]} {[%emt 00:00:17]} Nd7 {[%clk 01:06:36]}
{[%emt 00:01:16]} 13. Qg4 {[%clk 01:10:12]} {[%emt 00:05:37]} f5 {[%clk
00:39:25]} {[%emt 00:27:41]} 14. Qh5+ {[%clk 01:05:58]} {[%emt 00:04:43]} Kf8
{[%clk 00:38:38]} {[%emt 00:01:17]} 15. h4 {[%clk 00:34:29]} {[%emt 00:31:59]}
g4 {[%clk 00:36:44]} {[%emt 00:02:24]} 16. Ne5 {[%clk 00:34:37]} {[%emt
00:00:23]} Nxe5 {[%clk 00:36:37]} {[%emt 00:00:37]} 17. dxe5 {[%clk 00:35:04]}
{[%emt 00:00:02]} Rh8 {[%clk 00:36:41]} {[%emt 00:00:26]} 0-1

[Event "Estonian Chess Championship 2021"]
[Site "Tallinn, Paul Keres Chess House, Estonia"]
[Date "2021.12.19"]
[Round "9.4"]
[White "Kull, Tormi"]
[Black "Timoshin, Andrei"]
[Result "0-1"]
[TimeControl "90 minutes for first 40 moves and 15 min. for the rest of the game with 30 sec."]
[WhiteFideId "4510151"]
[BlackFideId "4503503"]
[WhiteElo "1753"]
[BlackElo "2150"]

1. e4 {[%clk 01:30:57]} {[%emt 00:00:02]} c5 {[%clk 01:28:50]} {[%emt
00:02:11]} 2. Nf3 {[%clk 01:31:21]} {[%emt 00:00:06]} g6 {[%clk 01:29:07]}
{[%emt 00:00:13]} 3. c3 {[%clk 01:29:38]} {[%emt 00:02:13]} Bg7 {[%clk
01:28:12]} {[%emt 00:01:25]} 4. d4 {[%clk 01:29:15]} {[%emt 00:00:53]} cxd4
{[%clk 01:28:36]} {[%emt 00:00:06]} 5. cxd4 {[%clk 01:29:39]} {[%emt 00:00:05]}
d5 {[%clk 01:28:47]} {[%emt 00:00:19]} 6. e5 {[%clk 01:29:57]} {[%emt
00:00:12]} Nc6 {[%clk 01:29:02]} {[%emt 00:00:15]} 7. Nc3 {[%clk 01:30:00]}
{[%emt 00:00:27]} Nh6 {[%clk 01:26:10]} {[%emt 00:03:22]} 8. h3 {[%clk
01:27:36]} {[%emt 00:02:54]} O-O {[%clk 01:25:43]} {[%emt 00:00:58]} 9. Bf4
{[%clk 01:25:24]} {[%emt 00:02:42]} f6 {[%clk 01:17:37]} {[%emt 00:08:37]} 10.
Qd2 {[%clk 01:14:13]} {[%emt 00:11:41]} Nf7 {[%clk 01:17:06]} {[%emt 00:01:01]}
11. exf6 {[%clk 01:13:51]} {[%emt 00:00:52]} exf6 {[%clk 01:15:18]} {[%emt
00:02:17]} 12. Be2 {[%clk 01:12:58]} {[%emt 00:01:23]} Be6 {[%clk 00:58:50]}
{[%emt 00:16:58]} 13. Rc1 {[%clk 01:11:14]} {[%emt 00:02:13]} Nd6 {[%clk
00:57:11]} {[%emt 00:02:09]} 14. Bxd6 {[%clk 01:08:50]} {[%emt 00:02:54]} Qxd6
{[%clk 00:57:39]} {[%emt 00:00:02]} 15. O-O {[%clk 01:08:57]} {[%emt 00:00:23]}
Rfe8 {[%clk 00:50:45]} {[%emt 00:07:25]} 16. Rfe1 {[%clk 01:08:04]} {[%emt
00:01:22]} Qf8 {[%clk 00:50:34]} {[%emt 00:00:42]} 17. Qc2 {[%clk 01:06:48]}
{[%emt 00:01:46]} Bh6 {[%clk 00:49:12]} {[%emt 00:01:53]} 18. Rcd1 {[%clk
01:05:23]} {[%emt 00:01:54]} Rac8 {[%clk 00:41:06]} {[%emt 00:08:36]} 19. Qb3
{[%clk 01:03:09]} {[%emt 00:02:44]} Qf7 {[%clk 00:41:20]} {[%emt 00:00:16]} 20.
Nh2 {[%clk 00:58:45]} {[%emt 00:04:54]} Na5 {[%clk 00:27:44]} {[%emt 00:14:06]}
21. Qb5 {[%clk 00:57:36]} {[%emt 00:01:39]} Nc4 {[%clk 00:27:13]} {[%emt
00:01:01]} 22. Bf3 {[%clk 00:56:25]} {[%emt 00:01:40]} a6 {[%clk 00:26:49]}
{[%emt 00:00:54]} 23. Qb4 {[%clk 00:54:14]} {[%emt 00:02:41]} Nd2 {[%clk
00:26:30]} {[%emt 00:00:50]} 24. Be2 {[%clk 00:51:51]} {[%emt 00:02:52]} Ne4
{[%clk 00:24:56]} {[%emt 00:02:04]} 25. Nf1 {[%clk 00:49:32]} {[%emt 00:02:48]}
Nxc3 {[%clk 00:22:42]} {[%emt 00:02:45]} 26. bxc3 {[%clk 00:49:55]} {[%emt
00:00:07]} Rc7 {[%clk 00:16:14]} {[%emt 00:06:58]} 27. Bf3 {[%clk 00:48:03]}
{[%emt 00:02:21]} Rec8 {[%clk 00:14:16]} {[%emt 00:02:29]} 28. Qa5 {[%clk
00:44:23]} {[%emt 00:04:10]} Kh8 {[%clk 00:11:12]} {[%emt 00:03:34]} 29. Ne3
{[%clk 00:43:50]} {[%emt 00:01:03]} Rxc3 {[%clk 00:11:30]} {[%emt 00:00:13]} 30.
Ng4 {[%clk 00:39:33]} {[%emt 00:04:46]} Bf4 {[%clk 00:10:34]} {[%emt 00:01:26]}
31. Qb6 {[%clk 00:38:44]} {[%emt 00:01:19]} R3c6 {[%clk 00:10:09]} {[%emt
00:00:55]} 32. Qa5 {[%clk 00:37:59]} {[%emt 00:01:15]} Rc1 {[%clk 00:03:51]}
{[%emt 00:06:48]} 33. g3 {[%clk 00:35:51]} {[%emt 00:02:39]} Rxd1 {[%clk
00:03:43]} {[%emt 00:00:39]} 34. Rxd1 {[%clk 00:35:27]} {[%emt 00:00:53]} Bc7
{[%clk 00:02:20]} {[%emt 00:01:53]} 35. Qb4 {[%clk 00:34:58]} {[%emt 00:00:59]}
Bb8 {[%clk 00:01:50]} {[%emt 00:01:00]} 36. Ne3 {[%clk 00:34:54]} {[%emt
00:00:34]} f5 {[%clk 00:01:39]} {[%emt 00:00:42]} 37. Ng2 {[%clk 00:31:16]}
{[%emt 00:04:07]} f4 {[%clk 00:01:57]} {[%emt 00:00:12]} 38. g4 {[%clk
00:31:25]} {[%emt 00:00:21]} h5 {[%clk 00:00:38]} {[%emt 00:01:49]} 39. Qd2
{[%clk 00:30:17]} {[%emt 00:01:37]} hxg4 {[%clk 00:00:59]} {[%emt 00:00:09]} 40.
hxg4 {[%clk 00:45:31]} {[%emt 00:00:15]} g5 {[%clk 00:16:17]} {[%emt 00:00:12]}
41. Ne1 {[%clk 00:45:20]} {[%emt 00:00:41]} Qd7 {[%clk 00:10:30]} {[%emt
00:06:18]} 42. Qe2 {[%clk 00:44:58]} {[%emt 00:00:52]} Kg7 {[%clk 00:09:54]}
{[%emt 00:01:06]} 43. Nd3 {[%clk 00:44:56]} {[%emt 00:00:31]} b6 {[%clk
00:07:41]} {[%emt 00:02:43]} 44. Kg2 {[%clk 00:44:29]} {[%emt 00:00:57]} Rh8
{[%clk 00:06:53]} {[%emt 00:01:19]} 45. Ne5 {[%clk 00:44:01]} {[%emt 00:00:58]}
Qc8 {[%clk 00:06:47]} {[%emt 00:00:36]} 46. Rb1 {[%clk 00:42:28]} {[%emt
00:02:03]} b5 {[%clk 00:07:15]} {[%emt 00:00:02]} 47. a4 {[%clk 00:42:38]}
{[%emt 00:00:19]} bxa4 {[%clk 00:06:31]} {[%emt 00:01:14]} 48. Nd3 {[%clk
00:42:35]} {[%emt 00:00:33]} Re8 {[%clk 00:03:54]} {[%emt 00:03:07]} 49. Nc5
{[%clk 00:42:21]} {[%emt 00:00:45]} Bf7 {[%clk 00:04:14]} {[%emt 00:00:10]} 50.
Qa2 {[%clk 00:41:12]} {[%emt 00:01:39]} Bd6 {[%clk 00:03:56]} {[%emt 00:00:47]}
51. Nb7 {[%clk 00:40:29]} {[%emt 00:01:13]} Bf8 {[%clk 00:03:35]} {[%emt
00:00:51]} 52. Qxa4 {[%clk 00:40:39]} {[%emt 00:00:21]} Bg6 {[%clk 00:03:38]}
{[%emt 00:00:27]} 53. Rb6 {[%clk 00:34:39]} {[%emt 00:06:30]} Be4 {[%clk
00:04:05]} {[%emt 00:00:04]} 54. Bxe4 {[%clk 00:34:19]} {[%emt 00:00:50]} Qxg4+
{[%clk 00:03:22]} {[%emt 00:01:12]} 55. Kh2 {[%clk 00:34:38]} {[%emt 00:00:10]}
Rxe4 {[%clk 00:03:46]} {[%emt 00:00:07]} 56. Qb3 {[%clk 00:33:39]} {[%emt
00:01:29]} f3 {[%clk 00:03:52]} {[%emt 00:00:24]} 0-1

[Event "Estonian Chess Championship 2021"]
[Site "Tallinn, Paul Keres Chess House, Estonia"]
[Date "2021.12.19"]
[Round "9.5"]
[White "Andrijashkin, Deniss"]
[Black "Rychagov, Nikita"]
[Result "1-0"]
[TimeControl "90 minutes for first 40 moves and 15 min. for the rest of the game with 30 sec."]
[WhiteFideId "4504631"]
[BlackFideId "4508394"]
[WhiteElo "2036"]
[BlackElo "1985"]

1. Nf3 {[%clk 01:27:43]} {[%emt 00:03:12]} d5 {[%clk 01:30:57]} {[%emt
00:00:08]} 2. g3 {[%clk 01:28:06]} {[%emt 00:00:06]} c5 {[%clk 01:31:24]}
{[%emt 00:00:03]} 3. Bg2 {[%clk 01:28:31]} {[%emt 00:00:05]} Nc6 {[%clk
01:31:51]} {[%emt 00:00:04]} 4. d4 {[%clk 01:28:49]} {[%emt 00:00:12]} Nf6
{[%clk 01:31:28]} {[%emt 00:00:53]} 5. O-O {[%clk 01:29:06]} {[%emt 00:00:12]}
h6 {[%clk 01:28:47]} {[%emt 00:03:11]} 6. c4 {[%clk 01:06:50]} {[%emt
00:22:46]} e6 {[%clk 01:20:03]} {[%emt 00:09:14]} 7. Nc3 {[%clk 00:59:39]}
{[%emt 00:07:41]} dxc4 {[%clk 01:18:45]} {[%emt 00:01:48]} 8. Qa4 {[%clk
00:59:52]} {[%emt 00:00:16]} Bd7 {[%clk 01:14:58]} {[%emt 00:04:18]} 9. Qxc4
{[%clk 00:59:58]} {[%emt 00:00:23]} b5 {[%clk 01:03:37]} {[%emt 00:11:51]} 10.
Qd3 {[%clk 00:59:55]} {[%emt 00:00:32]} c4 {[%clk 01:01:06]} {[%emt 00:03:02]}
11. Qc2 {[%clk 00:59:40]} {[%emt 00:00:45]} b4 {[%clk 00:59:29]} {[%emt
00:02:07]} 12. Ne4 {[%clk 00:58:10]} {[%emt 00:01:53]} Nxe4 {[%clk 00:57:36]}
{[%emt 00:02:29]} 13. Qxe4 {[%clk 00:58:35]} {[%emt 00:00:05]} Rc8 {[%clk
00:52:39]} {[%emt 00:05:28]} 14. d5 {[%clk 00:41:47]} {[%emt 00:17:18]} Ne7
{[%clk 00:52:40]} {[%emt 00:00:28]} 15. Rd1 {[%clk 00:39:07]} {[%emt 00:03:10]}
Qa5 {[%clk 00:48:58]} {[%emt 00:04:12]} 16. dxe6 {[%clk 00:35:12]} {[%emt
00:04:25]} Bxe6 {[%clk 00:48:33]} {[%emt 00:00:55]} 17. Nd4 {[%clk 00:31:56]}
{[%emt 00:03:46]} Bd5 {[%clk 00:47:43]} {[%emt 00:01:20]} 18. Qe5 {[%clk
00:30:41]} {[%emt 00:01:45]} f6 {[%clk 00:47:27]} {[%emt 00:00:47]} 19. Qh5+
{[%clk 00:29:45]} {[%emt 00:01:20]} g6 {[%clk 00:47:54]} {[%emt 00:00:08]} 20.
Qh4 {[%clk 00:30:06]} {[%emt 00:00:05]} Kf7 {[%clk 00:47:38]} {[%emt 00:00:49]}
21. e4 {[%clk 00:27:05]} {[%emt 00:03:32]} Ba8 {[%clk 00:48:05]} {[%emt
00:00:03]} 22. Bh3 {[%clk 00:27:01]} {[%emt 00:00:33]} Rc5 {[%clk 00:44:38]}
{[%emt 00:03:59]} 23. Bf4 {[%clk 00:20:39]} {[%emt 00:06:50]} Nc6 {[%clk
00:38:05]} {[%emt 00:07:05]} 24. Be6+ {[%clk 00:16:09]} {[%emt 00:04:59]} Kg7
{[%clk 00:38:21]} {[%emt 00:00:14]} 25. Nf5+ {[%clk 00:16:05]} {[%emt
00:00:34]} Rxf5 {[%clk 00:37:26]} {[%emt 00:01:24]} 26. exf5 {[%clk 00:16:03]}
{[%emt 00:00:32]} h5 {[%clk 00:33:41]} {[%emt 00:04:16]} 27. Rd7+ {[%clk
00:12:16]} {[%emt 00:04:18]} Be7 {[%clk 00:33:42]} {[%emt 00:00:28]} 28. Bd6
{[%clk 00:12:21]} {[%emt 00:00:25]} Re8 {[%clk 00:33:57]} {[%emt 00:00:15]} 29.
Qxc4 {[%clk 00:12:26]} {[%emt 00:00:24]} Kh6 {[%clk 00:32:44]} {[%emt
00:01:43]} 30. Bc7 {[%clk 00:02:47]} {[%emt 00:10:09]} Qa4 {[%clk 00:30:45]}
{[%emt 00:02:30]} 31. b3 {[%clk 00:02:20]} {[%emt 00:00:57]} Qa3 {[%clk
00:30:31]} {[%emt 00:00:45]} 32. Bd5 {[%clk 00:01:58]} {[%emt 00:00:51]} Bd6
{[%clk 00:24:48]} {[%emt 00:06:13]} 33. Bxd6 {[%clk 00:01:50]} {[%emt
00:00:37]} Na5 {[%clk 00:24:10]} {[%emt 00:01:08]} 34. Qf4+ {[%clk 00:01:02]}
{[%emt 00:01:16]} g5 {[%clk 00:24:28]} {[%emt 00:00:15]} 35. Qd4 {[%clk
00:01:27]} {[%emt 00:00:03]} h4 {[%clk 00:24:29]} {[%emt 00:00:31]} 36. Bxa8
{[%clk 00:01:05]} {[%emt 00:00:52]} Rxa8 {[%clk 00:24:35]} {[%emt 00:00:24]} 37.
g4 {[%clk 00:01:24]} {[%emt 00:00:10]} 1-0